bitfinex/quotes_ETHUSD_20250425
["timestamp","ask_amount","ask_price","bid_price","bid_amount"]
[1745563740222,1.07448458,1775.6,1775.2,0.7968]
[1745563740425,0.7689,1775.5,1775.3,4.75]
[1745563740992,0.31530328,1775.4,1775.3,4.75]
[1745563742632,1.07448458,1775.4,1775.2,4.75]
[1745563742834,0.825,1775.3,1775.2,4.75]
[1745563743139,0.31530328,1775.4,1775.2,4.75]
[1745563743435,0.31530328,1775.3,1775.2,4.75]
[1745563744296,0.31530328,1775.4,1775.2,5.225]
[1745563744843,0.31530328,1775.4,1775.2,6.0435]
[1745563746705,0.31530328,1775.4,1775.2,11.67664046]
[1745563746905,0.31530328,1775.4,1775.2,11.67644199]
[1745563748801,0.31530328,1775.4,1775.2,6.0435]
[1745563749115,0.31530328,1775.4,1775.3,0.60435]
[1745563749547,0.31530328,1775.4,1775.2,6.0435]
[1745563750946,0.31530328,1775.4,1775.2,11.67665945]
[1745563751253,0.31530328,1775.4,1775.2,11.67645711]
[1745563751930,0.31530328,1775.4,1775.2,11.67645376]
[1745563752131,0.31530328,1775.4,1775.2,6.0435]
[1745563752335,0.31530328,1775.4,1775.3,0.60435]
[1745563752755,0.31530328,1775.4,1775.3,7.05560078]
[1745563753361,6.0,1775.7,1775.3,7.05560078]
[1745563753569,6.0,1775.7,1775.4,5.63240206]
[1745563753749,6.0,1775.7,1775.5,4.75]
[1745563754359,9.7881,1775.9,1775.5,4.75]
[1745563754524,9.7881,1775.9,1775.5,5.78824021]
[1745563755239,0.31610521,1775.8,1775.5,5.78824021]
[1745563755472,0.31610521,1775.8,1775.5,11.4204334]
[1745563756324,0.31610521,1775.7,1775.5,11.4204334]
[1745563756920,0.31610521,1775.7,1775.6,5.63189907]
[1745563757136,0.31610521,1775.8,1775.7,5.63158191]
[1745563758360,0.31610521,1776.1,1775.7,5.63158191]
[1745563758546,0.31610521,1776.1,1775.7,5.63135887]
[1745563758725,0.31610521,1776.1,1775.8,0.56313589]
[1745563758925,0.31610521,1776.1,1775.9,4.748]
[1745563759122,1.07528651,1776.1,1775.9,4.748]
[1745563759665,1.074865,1776.1,1775.9,4.748]
[1745563767643,0.7591813,1776.1,1775.9,4.748]
[1745563772697,3.7816,1776.2,1775.9,4.748]
[1745563772999,3.0,1776.2,1775.9,4.748]
[1745563776189,3.0,1776.2,1775.9,5.86917454]
[1745563778303,3.0,1776.2,1776.0,0.52299355]
[1745563778909,3.0,1776.2,1775.9,5.86917454]
[1745563781396,4.52214948,1776.2,1775.9,5.86917454]
[1745563781818,4.52214948,1776.2,1775.9,11.50009467]
[1745563782021,3.0,1776.2,1775.9,11.50009467]
[1745563782324,3.0,1776.2,1776.0,1.15000947]
[1745563783095,3.0,1776.2,1775.9,4.748]
[1745563784244,3.0,1776.2,1775.9,10.37884551]
[1745563785725,3.0,1776.2,1776.0,0.52327895]
[1745563786103,3.0,1776.2,1775.9,10.37884551]
[1745563786673,3.7767,1776.4,1776.0,6.43821699]
[1745563786996,3.0,1776.4,1776.1,0.6438217]
[1745563787484,6.0,1776.5,1776.2,6.43100911]
[1745563787685,6.0,1776.5,1776.3,4.746]
[1745563792485,9.0,1776.6,1776.3,10.37557507]
[1745563792791,6.0,1776.8,1776.4,6.66680463]
[1745563793176,6.0,1776.8,1776.4,7.45560463]
[1745563793853,6.0,1776.8,1776.5,5.62891358]
[1745563794050,6.0,1776.8,1776.6,5.62869406]
[1745563794251,9.0,1776.8,1776.7,4.745]
[1745563794464,9.0,1776.8,1776.7,5.29838]
[1745563796195,6.0,1776.8,1776.7,10.92679222]
[1745563796492,6.0,1777.0,1776.7,5.29838]
[1745563796660,6.0,1777.0,1776.8,0.529838]
[1745563796855,3.0,1777.0,1776.8,0.529838]
[1745563798384,3.76073485,1777.0,1776.7,5.29838]
[1745563798589,0.7611,1776.9,1776.7,4.745]
[1745563799591,0.7611,1776.9,1776.5,5.62903543]
[1745563799779,0.7611,1776.9,1776.6,4.744]
[1745563801426,6.0,1776.9,1776.6,11.16630737]
[1745563804183,6.0,1776.9,1776.6,5.5378]
[1745563804502,6.0,1776.9,1776.7,0.55378]
[1745563807114,9.0,1777.0,1776.7,0.55378]
[1745563808945,6.0,1777.0,1776.7,6.18195416]
[1745563810317,6.0,1777.0,1776.7,0.55378]
[1745563810514,6.0,1777.0,1776.7,6.18201609]
[1745563810715,6.0,1777.0,1776.8,1.37340161]
[1745563811924,6.0,1777.0,1776.8,0.7552]
[1745563813132,9.76073485,1777.2,1776.8,0.7552]
[1745563815102,9.0,1777.2,1776.8,0.7552]
[1745563816740,9.0,1777.2,1776.9,4.743]
[1745563817306,10.52042972,1777.2,1776.9,4.743]
[1745563817629,10.52042972,1777.2,1777.0,0.4743]
[1745563819245,10.52042972,1777.2,1776.9,4.743]
[1745563819541,1.52042972,1777.1,1776.9,4.743]
[1745563821835,10.52042972,1777.2,1776.9,4.743]
[1745563825642,0.831,1777.1,1776.9,4.743]
[1745563829322,9.8324,1777.2,1776.9,4.743]
[1745563829522,9.8324,1777.2,1776.9,5.85938939]
[1745563830244,9.0,1777.2,1776.9,5.85938939]
[1745563830443,9.0,1777.2,1777.0,0.8265]
[1745563831164,0.29358766,1777.3,1777.2,0.7749]
[1745563831518,0.29358766,1777.3,1777.2,1.29716442]
[1745563831723,6.0,1777.4,1777.2,1.9895851]
[1745563831924,6.0,1777.4,1777.3,4.741]
[1745563836343,9.0,1777.6,1777.3,4.741]
[1745563838558,6.0,1777.6,1777.4,0.8152]
[1745563838761,6.0,1777.8,1777.4,0.8152]
[1745563839007,6.29347689,1777.8,1777.4,0.55562]
[1745563839448,0.8149,1777.7,1777.4,0.55562]
[1745563840336,5.00336852,1777.7,1777.2,0.69242068]
[1745563840537,5.00336852,1777.7,1777.3,4.741]
[1745563840973,0.7599,1777.4,1776.9,18.80758939]
[1745563841165,6.75973554,1777.3,1777.1,4.741]
[1745563841538,6.0,1777.3,1777.1,4.741]
[1745563842276,0.797,1777.2,1777.1,4.741]
[1745563843000,1.20902252,1777.2,1777.1,4.741]
[1745563844391,0.41202252,1777.2,1777.1,4.741]
[1745563844579,6.0,1777.3,1777.1,4.741]
[1745563844580,6.7535,1777.3,1777.1,4.741]
[1745563848761,6.0,1777.3,1777.1,4.741]
[1745563854309,6.29353975,1777.3,1777.1,4.741]
[1745563854517,6.29353975,1777.3,1777.1,5.5534]
[1745563854671,6.29353975,1777.3,1777.2,0.55534]
[1745563855915,6.29353975,1777.3,1777.2,1.33114]
[1745563856077,6.0,1777.3,1777.2,1.33114]
[1745563857002,0.42873298,1777.7,1777.2,1.33114]
[1745563857003,6.0,1777.6,1777.2,1.33114]
[1745563859115,6.0,1777.6,1777.3,0.7634]
[1745563859416,6.0,1777.7,1777.3,0.7634]
[1745563859584,6.0,1777.7,1777.4,0.7953]
[1745563859785,6.0,1777.7,1777.6,0.7953]
[1745563859983,0.7514,1778.0,1777.6,1.34873]
[1745563859984,6.0,1777.9,1777.6,1.34873]
[1745563860306,6.7514,1778.2,1777.8,0.7723]
[1745563860614,6.7514,1778.2,1777.9,4.739]
[1745563861214,6.42389211,1778.2,1777.9,4.739]
[1745563862105,1.09760014,1778.6,1778.0,0.7561]
[1745563862308,6.0,1778.5,1778.2,0.7561]
[1745563862617,6.0,1778.5,1778.3,4.738]
[1745563862783,6.0,1778.5,1778.3,5.28741]
[1745563864726,0.29350014,1778.6,1778.3,10.91070513]
[1745563864908,0.29350014,1778.6,1778.3,5.28741]
[1745563865125,6.0,1778.7,1778.4,6.38727973]
[1745563865327,6.0,1778.8,1778.5,0.63872797]
[1745563865638,0.7728,1778.9,1778.5,0.63872797]
[1745563865639,6.7728,1778.9,1778.5,0.63872797]
[1745563865849,6.0,1778.9,1778.6,5.62229]
[1745563866027,6.0,1778.9,1778.7,6.064629]
[1745563867134,6.0,1779.3,1778.9,0.7733]
[1745563868425,6.0,1779.3,1778.9,6.39461977]
[1745563868634,6.0,1779.3,1778.9,6.39456551]
[1745563868807,6.0,1779.3,1779.0,5.62088991]
[1745563868996,6.0,1779.3,1779.2,0.7627]
[1745563869196,0.75973554,1779.5,1779.1,4.737]
[1745563869197,6.75973554,1779.5,1779.1,4.737]
[1745563870000,0.29325971,1779.4,1779.1,4.737]
[1745563871394,6.75973554,1779.5,1779.1,4.737]
[1745563871599,0.29325097,1779.3,1779.1,4.737]
[1745563871831,0.29325097,1779.3,1779.2,0.4737]
[1745563872516,0.29325097,1779.3,1779.1,4.737]
[1745563872916,6.75973554,1779.5,1779.1,4.737]
[1745563874614,0.75973554,1779.3,1779.2,4.735]
[1745563874850,0.75973554,1779.3,1779.0,0.7627]
[1745563875030,1.56353554,1779.3,1779.1,4.735]
[1745563877341,0.8038,1779.3,1779.1,4.735]
[1745563878216,6.0,1779.4,1779.1,4.735]
[1745563880338,6.0,1779.5,1779.1,4.735]
[1745563880859,6.0,1779.5,1779.1,10.35573716]
[1745563881051,6.0,1779.5,1779.2,1.03557372]
[1745563881436,6.0,1779.5,1779.1,4.735]
[1745563881951,6.7678,1779.5,1779.1,4.735]
[1745563883666,6.7678,1779.5,1779.2,4.733]
[1745563884163,0.75973554,1779.4,1779.0,0.7945]
[1745563884341,0.75973554,1779.4,1779.1,4.733]
[1745563885058,6.7678,1779.5,1779.1,4.733]
[1745563885261,6.7678,1779.5,1779.1,6.0178]
[1745563886663,6.7678,1779.5,1779.1,11.63861634]
[1745563887458,6.7678,1779.5,1779.1,6.0178]
[1745563888464,0.29324754,1779.4,1779.1,11.6385935]
[1745563889288,0.29324754,1779.4,1779.1,6.0178]
[1745563889453,0.29324754,1779.4,1779.2,0.60178]
[1745563893680,0.29324754,1779.4,1779.3,0.52010911]
[1745563894389,0.29324754,1779.4,1779.3,5.25210911]
[1745563897771,0.29324754,1779.4,1779.3,0.52010911]
[1745563897971,0.29324754,1779.4,1779.3,5.25210911]
[1745563898176,0.29324754,1779.4,1779.3,0.52010911]
[1745563898337,0.29324754,1779.4,1779.3,5.25210911]
[1745563898977,0.09722473,1779.4,1779.3,5.25210911]
[1745563899269,6.0,1779.5,1779.3,0.52010911]
[1745563899471,6.0,1779.5,1779.3,5.25210911]
[1745563899974,6.0,1779.5,1779.3,4.732]
[1745563900955,6.75973554,1779.6,1779.3,4.732]
[1745563901556,6.75973554,1779.6,1778.7,18.73795849]
[1745563901557,6.75973554,1779.6,1778.8,5.62158284]
[1745563901884,0.75973554,1779.4,1778.9,5.81522988]
[1745563902467,0.75973554,1779.4,1779.0,0.5210716]
[1745563902670,9.75973554,1779.4,1779.0,0.5210716]
[1745563902894,3.75973554,1779.2,1779.0,0.5210716]
[1745563903078,3.0,1779.0,1778.7,4.732]
[1745563903260,0.75973554,1778.8,1778.1,22.48775373]
[1745563903453,0.75973554,1778.8,1778.2,6.98077537]
[1745563903454,6.75973554,1778.8,1778.2,6.98077537]
[1745563903667,6.75973554,1778.8,1778.2,2.24877537]
[1745563903977,6.0,1778.8,1778.3,5.25338293]
[1745563904347,6.0,1778.8,1778.3,10.87650628]
[1745563904562,6.0,1778.8,1778.4,6.14418712]
[1745563904784,6.0,1778.8,1778.5,0.61441871]
[1745563905097,6.0,1779.1,1778.6,0.52138293]
[1745563905280,6.0,1779.1,1778.7,4.732]
[1745563905582,6.0,1779.1,1778.8,0.52138293]
[1745563906082,6.0,1779.1,1778.7,4.732]
[1745563906249,6.0,1779.1,1778.7,5.2052]
[1745563907404,3.75973554,1779.0,1778.8,4.731]
[1745563909371,3.0,1779.0,1778.8,4.731]
[1745563909603,3.0,1779.0,1778.8,4.732]
[1745563910673,6.0,1779.1,1778.8,4.732]
[1745563912743,0.75973554,1779.0,1778.8,4.732]
[1745563913485,6.0,1779.1,1778.8,4.732]
[1745563915840,6.0,1779.1,1778.8,5.2052]
[1745563919638,6.0,1779.1,1778.8,4.732]
[1745563921840,0.75973554,1779.0,1778.8,4.732]
[1745563922030,3.75973554,1779.0,1778.3,5.62313977]
[1745563922231,0.75973554,1778.8,1778.4,4.732]
[1745563922430,0.75973554,1778.8,1778.2,2.24877537]
[1745563922746,0.75973554,1778.8,1778.3,4.732]
[1745563923056,0.75973554,1778.8,1778.4,0.4732]
[1745563923429,3.0,1779.0,1778.4,0.4732]
[1745563923633,6.0,1778.8,1778.6,5.62218541]
[1745563923939,6.0,1779.1,1778.7,4.732]
[1745563924141,6.0,1779.1,1778.8,0.4732]
[1745563925224,0.75973554,1779.0,1778.9,4.732]
[1745563925495,0.29329188,1779.2,1778.9,4.732]
[1745563925635,6.0,1779.3,1779.0,5.62083106]
[1745563925823,6.0,1779.3,1779.1,0.56208311]
[1745563926145,6.0,1779.3,1779.0,5.62103896]
[1745563926348,6.0,1779.3,1779.0,5.62092148]
[1745563926647,6.0,1779.3,1779.1,0.51997667]
[1745563927059,6.0,1779.3,1778.9,10.35332597]
[1745563927357,6.0,1779.6,1779.1,5.62063442]
[1745563927558,6.0,1779.7,1779.2,5.62040576]
[1745563927724,6.0,1779.9,1779.4,5.6196346]
[1745563927924,6.0,1779.9,1779.5,1.08182147]
[1745563928419,6.0,1779.9,1779.5,0.56196346]
[1745563929971,6.0,1779.9,1779.4,5.61984461]
[1745563930120,6.0,1779.9,1779.5,5.6195512]
[1745563930322,6.0,1779.9,1779.3,4.732]
[1745563930560,0.75973554,1779.8,1779.2,5.62049989]
[1745563930762,0.75973554,1779.8,1779.3,0.51883837]
[1745563931036,0.75973554,1779.6,1779.4,4.731]
[1745563931236,3.75973554,1779.8,1779.4,4.731]
[1745563931431,0.75973554,1779.5,1779.4,4.731]
[1745563933992,3.0,1779.6,1779.4,4.731]
[1745563935584,0.75973554,1779.5,1779.4,4.731]
[1745563935970,0.75973554,1779.5,1779.3,4.731]
[1745563936287,6.75973554,1779.5,1779.1,0.7718]
[1745563936485,6.75973554,1779.5,1779.2,4.731]
[1745563938693,6.75973554,1779.5,1779.1,0.7718]
[1745563938694,0.75973554,1779.3,1779.1,0.7718]
[1745563938899,6.0,1779.2,1778.9,0.7741]
[1745563939200,0.75973554,1779.1,1778.9,4.767]
[1745563939350,6.0,1779.0,1778.7,0.7741]
[1745563939553,6.0,1779.0,1778.8,4.767]
[1745563942187,6.0,1779.0,1778.7,0.7741]
[1745563942389,6.0,1779.0,1778.8,4.768]
[1745563944206,1.58993554,1778.9,1778.4,1.2235]
[1745563944491,6.75973554,1778.8,1778.7,4.768]
[1745563947073,9.75973554,1778.8,1778.7,4.768]
[1745563948709,9.75973554,1778.8,1778.4,0.7503]
[1745563949008,9.75973554,1778.8,1778.5,4.768]
[1745563949207,9.75973554,1778.8,1778.5,5.31983]
[1745563949696,9.0,1778.8,1778.5,5.31983]
[1745563949903,6.0,1778.8,1778.5,5.31983]
[1745563950071,6.0,1778.8,1778.6,0.799]
[1745563953597,6.0,1778.9,1778.6,0.799]
[1745563954702,6.0,1778.9,1778.6,1.410883]
[1745563958192,6.7962,1778.9,1778.5,4.768]
[1745563958519,0.75973554,1778.8,1778.5,4.768]
[1745563958919,9.75973554,1778.8,1778.5,4.768]
[1745563962515,6.0,1778.7,1778.5,4.768]
[1745563963085,6.7905,1778.7,1778.3,0.8306]
[1745563963287,6.7905,1778.7,1778.4,4.769]
[1745563967592,6.7905,1778.7,1778.3,0.8306]
[1745563967793,6.7905,1778.7,1778.4,4.74]
[1745563967993,0.75973554,1778.6,1778.4,4.74]
[1745563968403,6.0,1778.5,1778.4,4.74]
[1745563970212,5.95530336,1778.5,1778.4,4.74]
[1745563970891,5.95530336,1778.5,1778.2,0.8265]
[1745563971090,5.95530336,1778.4,1778.3,4.74]
[1745563972836,6.38288795,1778.4,1778.3,4.74]
[1745563973691,5.95530336,1778.4,1778.3,5.9837]
[1745563974222,5.95530336,1778.6,1778.4,0.7697]
[1745563975303,5.95530336,1778.6,1778.5,0.52135392]
[1745563978142,5.95530336,1778.6,1778.5,6.91376969]
[1745563978325,3.0,1778.8,1778.5,6.83544666]
[1745563978505,5.95530336,1778.9,1778.5,6.83544666]
[1745563978506,5.95530336,1778.9,1778.7,5.62202338]
[1745563978709,5.95530336,1779.2,1778.8,5.508]
[1745563979108,3.0,1779.1,1778.8,5.508]
[1745563979403,5.95530336,1779.2,1778.9,0.5508]
[1745563979816,3.0,1779.1,1778.9,0.5508]
[1745563982193,3.0,1779.1,1779.0,4.739]
[1745563982924,8.95530336,1779.1,1779.0,4.739]
[1745563983799,5.95530336,1779.1,1779.0,4.739]
[1745563984006,5.95530336,1779.1,1779.0,5.492]
[1745563987736,5.95530336,1779.1,1779.0,4.739]
[1745563994354,8.95530336,1779.1,1779.0,4.739]
[1745563994555,8.95530336,1779.1,1778.6,0.7815]
[1745563994746,0.75973554,1779.0,1778.7,4.739]
[1745563995145,0.75973554,1779.0,1778.8,4.739]
[1745563996268,1.57813554,1779.0,1778.6,2.6155877]
[1745563996469,1.57813554,1779.0,1778.7,4.739]
[1745563997225,1.57813554,1779.0,1778.8,4.739]
[1745563998762,8.95530336,1779.1,1778.8,4.739]
[1745563999060,5.95530336,1779.1,1778.8,5.9766]
[1745563999263,5.95530336,1779.1,1778.8,11.59833104]
[1745563999560,5.95530336,1779.1,1778.9,0.7637]
[1745564001781,5.95530336,1779.1,1778.9,6.38513529]
[1745564001933,5.95530336,1779.3,1779.0,0.63851353]
[1745564002140,5.95530336,1779.3,1779.1,0.8308]
[1745564002338,5.95530336,1779.3,1779.2,4.732]
[1745564008164,5.95530336,1779.3,1779.0,1.39471353]
[1745564008373,5.95530336,1779.3,1779.1,4.732]
[1745564008737,6.73990336,1779.3,1779.1,4.732]
[1745564009254,5.95530336,1779.3,1779.1,4.732]
[1745564011045,5.95530336,1779.3,1779.1,4.731]
[1745564013383,5.95530336,1779.3,1779.1,5.28282]
[1745564015098,6.73500336,1779.8,1779.2,0.784]
[1745564015245,6.73500336,1779.8,1779.3,5.62001501]
[1745564015445,3.0,1779.7,1779.4,0.832]
[1745564015659,3.0,1779.7,1779.5,4.731]
[1745564016674,5.95530336,1779.8,1779.5,4.731]
[1745564017464,0.31324273,1780.0,1779.7,5.61892453]
[1745564017771,0.31324273,1780.0,1779.9,0.7929]
[1745564017772,0.02,1780.0,1779.9,0.7929]
[1745564017986,0.02,1780.0,1779.9,5.5239]
[1745564018199,0.02,1780.0,1779.9,6.07629]
[1745564019471,0.4092658,1780.7,1780.3,5.61703083]
[1745564019778,0.4092658,1780.7,1780.6,0.7803]
[1745564020017,0.4092658,1780.7,1780.6,1.41995952]
[1745564020310,0.4092658,1780.7,1780.6,0.7803]
[1745564021111,0.4092658,1780.7,1780.2,16.861]
[1745564021312,0.4092658,1780.7,1780.3,11.16559376]
[1745564022608,0.4092658,1780.7,1780.4,5.61648228]
[1745564022813,0.4092658,1780.7,1780.6,0.8303]
[1745564027655,0.4092658,1780.7,1780.6,1.59003554]
[1745564027804,0.4092658,1780.7,1780.6,0.8303]
[1745564028546,0.4092658,1780.7,1780.6,6.44638446]
[1745564028750,0.4092658,1780.7,1780.6,0.8303]
[1745564028949,0.4092658,1780.7,1780.6,1.47494908]
[1745564029255,0.4092658,1780.7,1780.6,0.8303]
[1745564029752,0.4092658,1780.7,1780.2,16.861]
[1745564029753,0.4092658,1780.7,1780.2,17.6172]
[1745564029961,0.7568,1780.6,1780.3,4.756]
[1745564030711,0.4092658,1780.7,1780.6,0.7562]
[1745564031010,0.4092658,1780.7,1780.6,11.67828446]
[1745564031433,0.4092658,1780.7,1780.6,11.12828446]
[1745564037709,0.4092658,1780.7,1780.6,5.5122]
[1745564038206,0.4092658,1780.7,1780.6,11.12828446]
[1745564038411,0.4092658,1780.7,1780.6,12.87870661]
[1745564039463,0.4092658,1780.7,1780.6,6.50442215]
[1745564041168,0.4092658,1780.7,1780.4,0.4756]
[1745564041368,0.4092658,1780.7,1780.5,4.754]
[1745564041877,0.4092658,1780.7,1780.6,4.754]
[1745564043107,1.2011658,1780.7,1780.4,0.4756]
[1745564043313,1.2011658,1780.7,1780.4,4.754]
[1745564044243,1.2011658,1780.7,1780.5,4.755]
[1745564044607,7.15646916,1780.7,1780.5,4.755]
[1745564046909,7.15646916,1780.7,1780.2,16.861]
[1745564047117,7.15646916,1780.7,1780.3,5.27334476]
[1745564047624,7.15646916,1780.7,1780.4,4.755]
[1745564047822,7.9162047,1780.7,1780.4,4.755]
[1745564050746,0.8003,1780.6,1780.3,4.755]
[1745564050932,6.75560336,1780.5,1780.2,16.861]
[1745564051114,0.8003,1780.4,1780.3,4.755]
[1745564051440,0.8003,1780.4,1780.2,4.755]
[1745564051643,0.8003,1780.4,1780.2,5.2305]
[1745564052201,5.95530336,1780.5,1780.2,5.2305]
[1745564054656,0.4092658,1780.7,1780.3,6.89890499]
[1745564054814,0.4092658,1780.7,1780.3,12.51580812]
[1745564055015,0.4092658,1780.7,1780.4,0.51858087]
[1745564055326,0.4092658,1780.7,1780.5,0.51858087]
[1745564055652,0.4092658,1780.7,1780.6,4.755]
[1745564056536,0.8103,1780.6,1780.2,1.2713]
[1745564056713,0.8103,1780.6,1780.3,4.755]
[1745564057569,0.8103,1780.6,1780.4,4.755]
[1745564059078,6.76560336,1780.6,1780.2,0.4755]
[1745564059232,0.818,1780.5,1780.2,4.755]
[1745564060328,3.818,1780.5,1780.2,4.755]
[1745564062033,3.818,1780.5,1779.9,1.33019]
[1745564062254,9.77330336,1780.5,1780.0,4.87]
[1745564062479,9.77330336,1780.5,1780.0,5.490019]
[1745564064649,0.7774,1780.4,1780.0,5.490019]
[1745564065766,3.0,1780.3,1780.1,4.87]
[1745564066474,3.0,1780.3,1779.8,0.7619]
[1745564066475,0.7755,1780.2,1779.7,0.8189]
[1745564066657,0.7755,1780.2,1779.8,4.87]
[1745564066859,0.7755,1780.2,1779.8,5.38940458]
[1745564067490,0.7755,1780.2,1779.8,4.87]
[1745564067786,0.7755,1780.2,1779.7,2.88498211]
[1745564067987,0.7755,1780.2,1779.8,5.15849821]
[1745564068191,0.7755,1780.2,1779.8,5.67803474]
[1745564068792,0.7755,1780.2,1779.8,5.15849821]
[1745564069169,0.7755,1780.2,1779.9,0.51954591]
[1745564069397,0.7755,1780.2,1779.8,5.15849821]
[1745564069593,0.7755,1780.2,1779.9,0.51584982]
[1745564070875,6.73080336,1780.2,1779.9,0.51584982]
[1745564072516,3.0,1780.1,1779.8,5.15849821]
[1745564073201,0.7812,1780.0,1779.9,4.871]
[1745564073618,0.7812,1780.0,1779.4,6.43475646]
[1745564073619,3.0,1779.9,1779.4,0.815]
[1745564074329,3.0,1779.9,1779.5,0.51995831]
[1745564074524,3.0,1779.9,1779.6,4.871]
[1745564074722,3.0,1779.9,1779.6,5.41009583]
[1745564074919,3.0,1779.9,1779.7,4.871]
[1745564075117,0.7545,1779.8,1779.7,4.871]
[1745564077032,0.7545,1779.8,1779.3,17.6204]
[1745564077249,0.7545,1779.8,1779.3,0.7654]
[1745564077453,0.7966,1779.7,1779.1,0.7964]
[1745564077748,0.7966,1779.7,1779.2,4.871]
[1745564078050,0.7966,1779.7,1779.2,5.43774]
[1745564079636,3.0,1779.5,1779.2,5.43774]
[1745564080242,6.77800336,1779.4,1779.2,0.56674]
[1745564080423,6.77800336,1779.4,1779.3,4.872]
[1745564081123,5.95530336,1779.4,1779.3,4.872]
[1745564085032,8.95530336,1779.4,1779.3,4.872]
[1745564085228,3.0,1779.3,1778.7,0.8106]
[1745564085464,1.55963554,1779.2,1778.8,4.872]
[1745564085641,1.9855549,1779.2,1778.9,0.4872]
[1745564085964,1.9855549,1779.2,1778.7,0.8106]
[1745564086167,1.9855549,1779.2,1778.9,4.872]
[1745564088404,1.1856549,1779.2,1778.9,4.872]
[1745564088711,0.8275,1779.1,1778.9,4.872]
[1745564088911,0.75973554,1779.0,1778.9,4.872]
[1745564089087,0.7741,1778.9,1778.8,4.873]
[1745564089290,3.7741,1778.9,1778.8,4.873]
[1745564092941,5.95530336,1779.0,1778.8,5.3603]
[1745564098427,5.95530336,1779.0,1778.8,5.32870508]
[1745564099405,9.71760336,1779.2,1778.8,5.32870508]
[1745564101340,9.71760336,1779.2,1778.8,4.84140508]
[1745564102521,0.789,1779.1,1778.8,4.84140508]
[1745564102830,1.54873554,1779.1,1778.8,4.84140508]
[1745564103197,3.0,1778.9,1778.8,4.84140508]
[1745564103402,4.55113554,1778.9,1778.8,4.84140508]
[1745564105006,0.829,1778.8,1778.5,5.36165753]
[1745564105303,0.75973554,1778.6,1778.5,5.36165753]
[1745564105533,3.75973554,1778.6,1778.5,5.36165753]
[1745564106125,4.54343554,1778.6,1778.5,0.51665753]
[1745564106300,10.91929372,1778.6,1778.5,0.51665753]
[1745564108248,10.91929372,1778.6,1778.0,4.846]
[1745564108249,0.83,1778.5,1778.0,4.846]
[1745564108417,3.0,1778.3,1778.0,4.846]
[1745564108619,0.75973554,1778.2,1778.0,4.846]
[1745564109222,1.56353554,1778.2,1778.0,4.846]
[1745564109953,3.0,1778.0,1777.8,4.847]
[1745564110104,9.7150389,1778.0,1777.6,0.779]
[1745564110305,9.7150389,1778.0,1777.6,5.626]
[1745564111251,0.7776,1777.9,1777.6,5.626]
[1745564111454,9.7150389,1778.0,1777.6,5.626]
[1745564111749,5.95530336,1778.0,1777.7,0.8242]
[1745564112545,5.95530336,1778.0,1777.8,0.5]
[1745564114651,6.7150389,1778.0,1777.7,4.847]
[1745564115819,5.95530336,1778.0,1777.8,0.7966]
[1745564116225,5.95530336,1778.0,1777.7,5.3317]
[1745564116226,5.95530336,1778.0,1777.7,6.1283]
[1745564120947,5.95530336,1778.0,1777.7,5.3317]
[1745564121250,5.95530336,1778.0,1777.8,0.7529]
[1745564122612,5.95530336,1778.0,1777.9,0.5]
[1745564126620,1.57433554,1778.3,1777.9,0.5]
[1745564126621,5.95530336,1778.2,1777.9,0.5]
[1745564128553,5.95530336,1778.2,1778.0,4.841]
[1745564130947,4.58073554,1778.1,1778.0,4.841]
[1745564134462,4.58073554,1778.1,1777.8,4.841]
[1745564134629,4.58073554,1778.1,1777.7,4.841]
[1745564135258,0.75973554,1777.9,1777.7,4.841]
[1745564135564,0.75973554,1777.9,1777.6,4.841]
[1745564135565,0.7962,1777.8,1777.6,4.841]
[1745564137085,0.75973554,1777.9,1777.6,4.841]
[1745564138378,5.95530336,1777.9,1777.7,0.7981]
[1745564138959,0.75973554,1777.8,1777.6,4.841]
[1745564139155,1.54023554,1777.8,1777.6,4.841]
[1745564139383,0.7805,1777.8,1777.6,4.841]
[1745564139952,4.54023554,1777.8,1777.6,4.841]
[1745564141446,10.4955389,1777.8,1777.5,4.841]
[1745564141652,10.4955389,1777.8,1777.3,0.7594]
[1745564141948,0.7689,1777.3,1777.0,0.5]
[1745564142146,3.0,1777.1,1777.0,0.5]
[1745564142858,3.7689,1777.1,1777.0,0.5]
[1745564143064,3.7689,1777.1,1776.4,4.841]
[1745564143259,0.75973554,1777.0,1776.4,5.96400767]
[1745564143461,1.50272453,1777.0,1776.4,4.841]
[1745564144594,1.50272453,1777.0,1776.5,0.7594]
[1745564146021,0.75973554,1777.0,1776.5,0.7594]
[1745564146814,10.15381434,1777.1,1776.5,6.38840809]
[1745564147348,10.15381434,1777.1,1776.5,0.7594]
[1745564147884,10.15381434,1777.1,1776.5,6.38843562]
[1745564148083,10.15381434,1777.1,1776.6,0.63884356]
[1745564148336,0.75973554,1777.0,1776.5,0.7594]
[1745564149221,6.72420336,1777.1,1776.5,6.38832882]
[1745564149393,5.95530336,1777.1,1776.6,6.43702132]
[1745564149599,5.95530336,1777.1,1776.8,0.8085]
[1745564149798,5.95530336,1777.2,1776.8,5.6515]
[1745564152426,5.95530336,1777.2,1776.8,11.27947038]
[1745564153624,5.95530336,1777.2,1776.8,5.6515]
[1745564154133,5.95530336,1777.2,1776.8,11.27956388]
[1745564154495,5.95530336,1777.2,1776.9,1.12795639]
[1745564158902,5.95530336,1777.3,1776.9,1.12795639]
[1745564160536,5.95530336,1777.3,1777.0,0.8083]
[1745564161240,5.95530336,1777.4,1777.0,0.8083]
[1745564161438,5.95530336,1777.4,1777.0,6.43571722]